[Event "9th Amsterdam Science Park B 2019"]
[Site "Amsterdam"]
[Date "2019.07.06"]
[Round "1.9"]
[White "Van Rijs, Tim"]
[Black "Smit, Tom"]
[Result "1-0"]
[ECO "C44"]
[WhiteElo "1304"]
[BlackElo "1542"]
[Annotator "NA"]
[PlyCount "69"]
[EventDate "2019.07.06"]
[EventType "swiss"]
[EventCountry "NED"]
[SourceTitle "playchess.com"]
[Source "ChessBase"]
[SourceQuality "1"]
[TimeControl "40/5400+30:1800+30"]

1. e4 {[%emt 0:00:00]} e5 {[%emt 0:00:00]} 2. Nf3 {[%emt 0:00:00]} Nc6 {[%emt 0:00:00]} 3. d4 {[%emt 0:00:00]} exd4 {[%emt 0:00:00]} 4. Nxd4 {[%emt 0:00:00]} Qh4 {[%emt 0:00:03]} 5. Nc3 {[%emt 0:03:21]} Bb4 {[%emt 0:00:07]} 6. Qd3 {[%emt 0:02:52]} Bxc3+ {[%emt 0:05:56]} 7. bxc3 {[%emt 0:00:09]} d6 {[%emt 0:01:13]} 8. g3 {[%emt 0:02:04]} Qe7 {[%emt 0:00:34]} 9. Bg2 {[%emt 0:01:04]} Nf6 {[%emt 0:02:47]} 10. O-O {[%emt 0:00:23]} O-O {[%emt 0:00:20]} 11. Re1 {[%emt 0:01:16]} Bd7 {[%emt 0:01:38]} 12. Bf4 {[%emt 0:06:29]} Ne5 {[%emt 0:06:03]} 13. Bxe5 {[%emt 0:02:58]} dxe5 {[%emt 0:00:37]} 14. Nf5 {[%emt 0:02:05]} Qe8 {[%emt 0:01:52]} 15. Qe3 {[%emt 0:04:33]} Bxf5 {[%emt 0:05:01]} 16. exf5 {[%emt 0:00:16]} e4 {[%emt 0:02:30]} 17. Bxe4 {[%emt 0:02:12]} Nxe4 {[%emt 0:00:57]} 18. Qxe4 {[%emt 0:00:49]} Qxe4 {[%emt 0:00:43]} 19. Rxe4 {[%emt 0:00:05]} Rfe8 {[%emt 0:00:21]} 20. Rae1 {[%emt 0:00:04]} Rxe4 {[%emt 0:00:41]} 21. Rxe4 {[%emt 0:00:05]} Kf8 {[%emt 0:00:16]} 22. Kg2 {[%emt 0:00:32]} c5 {[%emt 0:02:43]} 23. Re3 {[%emt 0:02:35]} f6 {[%emt 0:06:09]} 24. Kf3 {[%emt 0:00:25]} Re8 {[%emt 0:02:10]} 25. Rxe8+ {[%emt 0:01:56]} Kxe8 {[%emt 0:00:02]} 26. Ke4 {[%emt 0:00:12]} Kd7 {[%emt 0:03:34]} 27. Kd5 {[%emt 0:00:13]} b6 {[%emt 0:00:06]} 28. a4 {[%emt 0:00:37]} c4 {[%emt 0:09:18]} 29. f4 {[%emt 0:02:53]} a6 {[%emt 0:00:17]} 30. h4 {[%emt 0:00:53]} h5 {[%emt 0:00:23]} 31. Kxc4 {[%emt 0:01:17]} Kc6 {[%emt 0:00:01]} 32. Kb4 {[%emt 0:01:11]} Kd5 {[%emt 0:05:15]} 33. c4+ {[%emt 0:02:41]} Ke4 {[%emt 0:00:10]} 34. a5 {[%emt 0:01:50]} b5 {[%emt 0:04:28]} 35. cxb5 {[%emt 0:00:17]} 1-0

[Event "9th Amsterdam Science Park B 2019"]
[Site "Amsterdam"]
[Date "2019.07.07"]
[Round "2.1"]
[White "Eveleens, Wim"]
[Black "Van de Kamp, Rob"]
[Result "1/2-1/2"]
[ECO "A00"]
[WhiteElo "2005"]
[BlackElo "1936"]
[Annotator "NA"]
[PlyCount "131"]
[EventDate "2019.07.06"]
[EventType "swiss"]
[EventCountry "NED"]
[SourceTitle "playchess.com"]
[Source "ChessBase"]
[SourceQuality "1"]
[TimeControl "40/5400+30:1800+30"]

1. g3 {[%emt 0:00:00]} Nf6 {[%emt 0:00:44]} 2. c4 c5 {[%emt 0:00:40]} 3. Bg2 {[%emt 0:00:02]} Nc6 {[%emt 0:00:07]} 4. Nc3 {[%emt 0:00:05]} g6 {[%emt 0:02:21]} 5. d3 {[%emt 0:00:51]} Bg7 {[%emt 0:00:48]} 6. e4 {[%emt 0:00:07]} d6 {[%emt 0:01:48]} 7. Nge2 {[%emt 0:00:44]} O-O {[%emt 0:04:03]} 8. O-O {[%emt 0:00:22]} e5 {[%emt 0:08:35]} 9. f4 {[%emt 0:02:12]} Nd4 {[%emt 0:00:17]} 10. f5 {[%emt 0:03:54]} h6 {[%emt 0:06:19]} 11. h3 {[%emt 0:10:36]} Bd7 {[%emt 0:08:09]} 12. g4 {[%emt 0:05:23]} Nh7 {[%emt 0:01:58]} 13. Nxd4 {[%emt 0:04:43]} cxd4 {[%emt 0:01:25]} 14. Nd5 {[%emt 0:02:21]} g5 {[%emt 0:00:16]} 15. a4 {[%emt 0:09:55]} Bc6 {[%emt 0:02:11]} 16. Bd2 {[%emt 0:04:13]} Nf6 {[%emt 0:02:11]} 17. b4 {[%emt 0:07:07]} Nd7 {[%emt 0:02:01]} 18. a5 {[%emt 0:03:10]} f6 {[%emt 0:02:40]} 19. Kf2 {[%emt 0:01:44]} Kf7 {[%emt 0:03:37]} 20. Rh1 {[%emt 0:01:42]} Rh8 {[%emt 0:05:35]} 21. h4 {[%emt 0:01:49]} Rc8 {[%emt 0:01:45]} 22. Qf3 {[%emt 0:01:36]} Nb8 {[%emt 0:06:56]} 23. hxg5 {[%emt 0:04:27]} hxg5 {[%emt 0:00:23]} 24. Rxh8 {[%emt 0:00:12]} Qxh8 {[%emt 0:00:34]} 25. Rh1 {[%emt 0:00:07]} Qg8 {[%emt 0:00:10]} 26. Rh5 {[%emt 0:02:51]} Nd7 {[%emt 0:06:24]} 27. Qh3 {[%emt 0:00:25]} Nf8 {[%emt 0:01:54]} 28. Bf3 {[%emt 0:01:54]} Bxd5 {[%emt 0:08:18]} 29. exd5 {[%emt 0:00:16]} Nd7 {[%emt 0:00:25]} 30. Be4 {[%emt 0:04:41]} Ke7 {[%emt 0:01:24]} 31. Qh1 {[%emt 0:01:50]} Qf7 {[%emt 0:03:07]} 32. Qc1 {[%emt 0:05:44]} b6 {[%emt 0:01:34]} 33. Qa3 {[%emt 0:01:14]} Rc7 {[%emt 0:02:01]} 34. Rh1 {[%emt 0:00:23]} Qe8 {[%emt 0:01:23]} 35. Qa4 {[%emt 0:03:01]} Qc8 {[%emt 0:02:54]} 36. Ra1 {[%emt 0:04:04]} Kf7 {[%emt 0:01:55]} 37. axb6 {[%emt 0:02:18]} axb6 {[%emt 0:00:01]} 38. Qb5 {[%emt 0:00:47]} Bf8 {[%emt 0:04:10]} 39. Qa4 {[%emt 0:01:00]} Be7 {[%emt 0:02:00]} 40. Qa8 {[%emt 0:02:41]} Qxa8 {[%emt 0:01:38]} 41. Rxa8 {[%emt 0:30:02]} Bf8 {[%emt 0:31:01]} 42. Ke2 {[%emt 0:02:54]} Be7 {[%emt 0:01:13]} 43. Kd1 {[%emt 0:01:55]} Bf8 {[%emt 0:02:50]} 44. Ra6 {[%emt 0:02:58]} Ke7 {[%emt 0:00:00]} 45. Kc2 {[%emt 0:00:00]} Rb7 {[%emt 0:00:00]} 46. Bc1 {[%emt 0:00:00]} Kd8 {[%emt 0:00:00]} 47. Ba3 {[%emt 0:00:00]} Kc8 {[%emt 0:00:00]} 48. Ra8+ {[%emt 0:00:00]} Rb8 {[%emt 0:00:00]} 49. Ra7 {[%emt 0:00:00]} Rb7 {[%emt 0:00:00]} 50. Rxb7 {[%emt 0:00:00]} Kxb7 {[%emt 0:00:00]} 51. Bf3 {[%emt 0:00:00]} Kc7 {[%emt 0:00:00]} 52. Kd2 {[%emt 0:00:00]} b5 {[%emt 0:00:00]} 53. Kc2 {[%emt 0:00:00]} Kb6 {[%emt 0:00:00]} 54. Bb2 {[%emt 0:00:00]} Be7 {[%emt 0:00:00]} 55. Kd2 {[%emt 0:03:03]} Bf8 {[%emt 0:00:00]} 56. Bd1 {[%emt 0:00:11]} Be7 {[%emt 0:00:00]} 57. Ke2 {[%emt 0:00:53]} Bf8 {[%emt 0:00:00]} 58. Kf3 {[%emt 0:00:06]} Be7 {[%emt 0:00:00]} 59. Ke4 {[%emt 0:00:06]} Bf8 {[%emt 0:00:00]} 60. Bb3 {[%emt 0:00:20]} Be7 {[%emt 0:00:00]} 61. Bc1 {[%emt 0:00:34]} Bf8 {[%emt 0:00:44]} 62. Bd2 {[%emt 0:02:17]} Be7 {[%emt 0:00:20]} 63. cxb5 {[%emt 0:03:19]} Kxb5 {[%emt 0:01:35]} 64. Bc4+ {[%emt 0:00:00]} Ka4 {[%emt 0:02:46]} 65. Kf3 {[%emt 0:00:52]} Nb6 66. Ke4 1/2-1/2

[Event "9th Amsterdam Science Park B 2019"]
[Site "Amsterdam"]
[Date "2019.07.07"]
[Round "2.2"]
[White "Aalten, Evert"]
[Black "Yu, Michael"]
[Result "1-0"]
[ECO "A06"]
[WhiteElo "1931"]
[BlackElo "1995"]
[Annotator "NA"]
[PlyCount "109"]
[EventDate "2019.07.06"]
[EventType "swiss"]
[EventCountry "NED"]
[SourceTitle "playchess.com"]
[Source "ChessBase"]
[SourceQuality "1"]
[TimeControl "40/5400+30:1800+30"]

1. Nf3 {[%emt 0:00:00]} d5 {[%emt 0:02:15]} 2. c4 {[%emt 0:00:17]} c6 {[%emt 0:00:12]} 3. e3 {[%emt 0:00:33]} Nf6 {[%emt 0:00:15]} 4. Nc3 {[%emt 0:00:17]} g6 {[%emt 0:04:19]} 5. d4 {[%emt 0:00:44]} Bg7 {[%emt 0:00:11]} 6. Be2 {[%emt 0:00:54]} O-O {[%emt 0:00:22]} 7. O-O {[%emt 0:00:14]} a6 {[%emt 0:05:44]} 8. Bd2 {[%emt 0:02:46]} Re8 {[%emt 0:03:03]} 9. h3 {[%emt 0:07:31]} Nbd7 {[%emt 0:01:44]} 10. Qb3 {[%emt 0:03:16]} e6 {[%emt 0:04:11]} 11. Rfc1 {[%emt 0:01:48]} Ne4 {[%emt 0:04:49]} 12. Be1 {[%emt 0:04:10]} Nd6 {[%emt 0:11:23]} 13. Rd1 {[%emt 0:03:50]} dxc4 {[%emt 0:03:52]} 14. Bxc4 {[%emt 0:01:20]} b5 {[%emt 0:00:27]} 15. Be2 {[%emt 0:01:06]} Bb7 {[%emt 0:00:28]} 16. a4 {[%emt 0:05:33]} Qb6 {[%emt 0:02:07]} 17. Qb4 {[%emt 0:06:34]} Bf8 {[%emt 0:02:07]} 18. Qb3 {[%emt 0:01:02]} Rab8 {[%emt 0:01:01]} 19. Ne5 {[%emt 0:01:07]} Nxe5 {[%emt 0:01:28]} 20. dxe5 {[%emt 0:00:13]} Nf5 {[%emt 0:00:22]} 21. Ne4 {[%emt 0:01:01]} Bg7 {[%emt 0:00:48]} 22. axb5 {[%emt 0:05:34]} cxb5 {[%emt 0:03:19]} 23. Ba5 {[%emt 0:03:09]} Qc6 {[%emt 0:05:31]} 24. Bf3 {[%emt 0:00:27]} Qc4 {[%emt 0:00:07]} 25. Qxc4 {[%emt 0:01:16]} bxc4 {[%emt 0:00:08]} 26. Bc3 {[%emt 0:02:58]} Nh4 {[%emt 0:01:38]} 27. Nd6 {[%emt 0:06:19]} Bxf3 {[%emt 0:03:04]} 28. gxf3 {[%emt 0:00:28]} Nxf3+ {[%emt 0:00:30]} 29. Kg2 {[%emt 0:00:13]} Nh4+ {[%emt 0:00:14]} 30. Kf1 {[%emt 0:02:14]} Red8 {[%emt 0:01:38]} 31. Ke2 {[%emt 0:01:36]} Rf8 {[%emt 0:05:45]} 32. Rxa6 {[%emt 0:01:14]} f6 {[%emt 0:00:16]} 33. Nxc4 {[%emt 0:00:25]} fxe5 {[%emt 0:00:50]} 34. Rxe6 {[%emt 0:03:16]} Nf3 {[%emt 0:00:18]} 35. Nd6 {[%emt 0:06:01]} Ng5 {[%emt 0:02:06]} 36. Re7 {[%emt 0:00:18]} Bf6 {[%emt 0:02:35]} 37. Rd7 {[%emt 0:01:16]} e4 {[%emt 0:01:17]} 38. Rb7 {[%emt 0:05:29]} Bxc3 {[%emt 0:02:44]} 39. Rxb8 {[%emt 0:01:07]} Rxb8 {[%emt 0:00:24]} 40. bxc3 {[%emt 0:00:08]} Nxh3 {[%emt 0:03:04]} 41. Nxe4 {[%emt 0:32:05]} Rb2+ {[%emt 0:31:09]} 42. Kf3 {[%emt 0:00:56]} g5 {[%emt 0:01:05]} 43. Kg3 {[%emt 0:01:03]} g4 {[%emt 0:00:26]} 44. Nf6+ {[%emt 0:00:14]} Kg7 {[%emt 0:00:21]} 45. Nxg4 {[%emt 0:00:19]} Ng5 {[%emt 0:00:12]} 46. Rd7+ {[%emt 0:00:21]} Kg6 {[%emt 0:00:21]} 47. f3 {[%emt 0:00:57]} h5 {[%emt 0:00:30]} 48. Rd6+ {[%emt 0:00:22]} Kg7 {[%emt 0:00:20]} 49. Ne5 {[%emt 0:01:01]} Nh7 {[%emt 0:02:02]} 50. Rg6+ {[%emt 0:00:18]} Kf8 {[%emt 0:00:08]} 51. Rh6 {[%emt 0:00:26]} h4+ {[%emt 0:01:41]} 52. Rxh4 {[%emt 0:00:35]} Ng5 {[%emt 0:00:20]} 53. Rc4 {[%emt 0:00:52]} Ke7 {[%emt 0:00:38]} 54. f4 {[%emt 0:00:14]} Ne6 {[%emt 0:00:15]} 55. Kf3 {[%emt 0:00:46]} 1-0

[Event "9th Amsterdam Science Park B 2019"]
[Site "Amsterdam"]
[Date "2019.07.07"]
[Round "2.3"]
[White "Emans, Job"]
[Black "Littel, Leo"]
[Result "1-0"]
[ECO "E15"]
[WhiteElo "1989"]
[BlackElo "1919"]
[Annotator "NA"]
[PlyCount "83"]
[EventDate "2019.07.06"]
[EventType "swiss"]
[EventCountry "NED"]
[SourceTitle "playchess.com"]
[Source "ChessBase"]
[SourceQuality "1"]
[TimeControl "40/5400+30:1800+30"]

1. d4 {[%emt 0:00:00]} Nf6 {[%emt 0:00:00]} 2. c4 {[%emt 0:00:00]} e6 {[%emt 0:00:00]} 3. Nf3 {[%emt 0:00:10]} b6 {[%emt 0:00:18]} 4. g3 {[%emt 0:00:32]} Ba6 {[%emt 0:00:46]} 5. Qc2 {[%emt 0:00:30]} Bb4+ {[%emt 0:07:20]} 6. Bd2 {[%emt 0:00:36]} Be7 {[%emt 0:00:19]} 7. Bg2 {[%emt 0:01:25]} c6 {[%emt 0:00:15]} 8. O-O {[%emt 0:02:45]} d5 {[%emt 0:07:19]} 9. Ne5 {[%emt 0:05:03]} Nfd7 {[%emt 0:09:17]} 10. cxd5 {[%emt 0:10:14]} cxd5 {[%emt 0:01:45]} 11. Re1 {[%emt 0:00:33]} Nxe5 {[%emt 0:06:51]} 12. dxe5 {[%emt 0:00:57]} Qd7 {[%emt 0:00:44]} 13. Bc3 {[%emt 0:06:16]} O-O {[%emt 0:04:21]} 14. Nd2 {[%emt 0:01:39]} Nc6 {[%emt 0:01:11]} 15. Nf3 {[%emt 0:13:10]} Bb7 {[%emt 0:17:53]} 16. Red1 {[%emt 0:06:03]} Qc7 {[%emt 0:05:02]} 17. e4 {[%emt 0:06:13]} dxe4 {[%emt 0:01:21]} 18. Qxe4 {[%emt 0:04:02]} Nb4 {[%emt 0:08:17]} 19. Qg4 {[%emt 0:03:21]} Nd5 {[%emt 0:01:04]} 20. Rac1 {[%emt 0:00:37]} Qd7 {[%emt 0:02:03]} 21. Ng5 {[%emt 0:05:50]} Bxg5 {[%emt 0:00:33]} 22. Qxg5 {[%emt 0:00:04]} Qd8 {[%emt 0:02:18]} 23. Qg4 {[%emt 0:02:10]} Rc8 {[%emt 0:01:13]} 24. Bd2 {[%emt 0:07:32]} Rxc1 {[%emt 0:00:05]} 25. Bxc1 {[%emt 0:02:14]} Kh8 {[%emt 0:02:01]} 26. Be4 {[%emt 0:03:46]} f5 {[%emt 0:05:27]} 27. exf6 {[%emt 0:00:27]} Qxf6 {[%emt 0:00:18]} 28. Qe2 {[%emt 0:02:06]} Qe5 {[%emt 0:03:41]} 29. Re1 {[%emt 0:01:53]} Qd4 {[%emt 0:00:58]} 30. Bg2 {[%emt 0:01:29]} Ba6 {[%emt 0:01:41]} 31. Qd2 {[%emt 0:00:06]} Qf6 {[%emt 0:02:39]} 32. a3 {[%emt 0:00:57]} Bd3 {[%emt 0:01:58]} 33. b4 {[%emt 0:01:50]} Bf5 {[%emt 0:02:03]} 34. Bb2 {[%emt 0:00:27]} Qf7 {[%emt 0:00:11]} 35. Qd4 {[%emt 0:01:05]} Rc8 {[%emt 0:02:11]} 36. g4 {[%emt 0:02:05]} Bg6 {[%emt 0:00:27]} 37. Rxe6 {[%emt 0:05:53]} Nf4 {[%emt 0:00:26]} 38. Bd5 {[%emt 0:00:12]} Rc1+ {[%emt 0:02:43]} 39. Bxc1 {[%emt 0:00:26]} Qxe6 {[%emt 0:00:07]} 40. Bxf4 {[%emt 0:00:30]} Qxg4+ {[%emt 0:00:10]} 41. Bg2 {[%emt 0:31:49]} h5 {[%emt 0:31:38]} 42. Be5 {[%emt 0:01:52]} 1-0

[Event "9th Amsterdam Science Park B 2019"]
[Site "Amsterdam"]
[Date "2019.07.07"]
[Round "2.4"]
[White "Dambrink, Wouter"]
[Black "Sula, Avni"]
[Result "1-0"]
[ECO "D30"]
[WhiteElo "1931"]
[BlackElo "1978"]
[Annotator "NA"]
[PlyCount "69"]
[EventDate "2019.07.06"]
[EventType "swiss"]
[EventCountry "NED"]
[SourceTitle "playchess.com"]
[Source "ChessBase"]
[SourceQuality "1"]
[TimeControl "40/5400+30:1800+30"]

1. d4 {[%emt 0:05:05]} d5 {[%emt 0:00:06]} 2. c4 {[%emt 0:00:10]} e6 {[%emt 0:00:24]} 3. Nf3 {[%emt 0:00:57]} c6 {[%emt 0:01:05]} 4. g3 {[%emt 0:00:33]} Nf6 {[%emt 0:01:08]} 5. Bg2 {[%emt 0:00:06]} Bb4+ {[%emt 0:00:50]} 6. Nc3 {[%emt 0:00:30]} O-O {[%emt 0:02:35]} 7. O-O {[%emt 0:00:16]} dxc4 {[%emt 0:01:39]} 8. Ne5 {[%emt 0:00:55]} Nd5 {[%emt 0:01:25]} 9. Qc2 {[%emt 0:04:31]} b5 {[%emt 0:04:17]} 10. a4 {[%emt 0:09:19]} Bxc3 {[%emt 0:02:40]} 11. bxc3 {[%emt 0:01:56]} f6 {[%emt 0:00:31]} 12. Nf3 {[%emt 0:02:22]} Bb7 {[%emt 0:01:14]} 13. h4 {[%emt 0:08:50]} Re8 {[%emt 0:02:37]} 14. Rd1 {[%emt 0:07:43]} Nb6 {[%emt 0:01:55]} 15. axb5 {[%emt 0:02:51]} cxb5 {[%emt 0:00:18]} 16. Ng5 {[%emt 0:00:50]} fxg5 {[%emt 0:08:52]} 17. Bxb7 {[%emt 0:00:51]} N8d7 {[%emt 0:00:16]} 18. Bxg5 {[%emt 0:01:48]} Qc7 {[%emt 0:04:36]} 19. Bxa8 {[%emt 0:00:52]} Rxa8 {[%emt 0:00:08]} 20. Qe4 {[%emt 0:01:40]} Re8 {[%emt 0:01:11]} 21. d5 {[%emt 0:02:52]} Nc5 {[%emt 0:01:43]} 22. d6 {[%emt 0:05:29]} Qd7 {[%emt 0:01:56]} 23. Qe5 {[%emt 0:03:42]} Nba4 {[%emt 0:03:44]} 24. h5 {[%emt 0:08:04]} h6 {[%emt 0:05:27]} 25. Be7 {[%emt 0:01:10]} Nb3 {[%emt 0:02:37]} 26. Rab1 {[%emt 0:01:17]} Nac5 {[%emt 0:02:05]} 27. g4 {[%emt 0:02:31]} a5 {[%emt 0:13:29]} 28. g5 {[%emt 0:02:32]} hxg5 {[%emt 0:04:58]} 29. h6 {[%emt 0:02:22]} gxh6 {[%emt 0:01:45]} 30. Qf6 {[%emt 0:00:24]} Ne4 {[%emt 0:05:00]} 31. Qg6+ {[%emt 0:00:13]} Kh8 {[%emt 0:00:12]} 32. Qxh6+ {[%emt 0:00:09]} Kg8 {[%emt 0:00:24]} 33. Qg6+ {[%emt 0:00:06]} Kh8 {[%emt 0:00:10]} 34. Kg2 {[%emt 0:00:25]} Rxe7 {[%emt 0:01:41]} 35. dxe7 1-0

[Event "9th Amsterdam Science Park B 2019"]
[Site "Amsterdam"]
[Date "2019.07.07"]
[Round "2.5"]
[White "Klaren, Duncan"]
[Black "Brandsma, Romayn"]
[Result "1/2-1/2"]
[ECO "C45"]
[WhiteElo "1896"]
[BlackElo "1957"]
[Annotator "NA"]
[PlyCount "107"]
[EventDate "2019.07.06"]
[EventType "swiss"]
[EventCountry "NED"]
[SourceTitle "playchess.com"]
[Source "ChessBase"]
[SourceQuality "1"]
[TimeControl "40/5400+30:1800+30"]

1. e4 {[%emt 0:00:00]} e5 {[%emt 0:00:00]} 2. Nf3 {[%emt 0:00:00]} Nc6 {[%emt 0:00:00]} 3. d4 {[%emt 0:00:00]} exd4 {[%emt 0:00:00]} 4. Nxd4 {[%emt 0:00:00]} Nf6 {[%emt 0:00:02]} 5. Nxc6 {[%emt 0:00:00]} bxc6 {[%emt 0:00:05]} 6. e5 {[%emt 0:00:00]} Qe7 {[%emt 0:00:07]} 7. Qe2 {[%emt 0:00:00]} Nd5 {[%emt 0:00:05]} 8. c4 {[%emt 0:00:00]} Ba6 {[%emt 0:00:02]} 9. Nd2 {[%emt 0:00:03]} g6 {[%emt 0:00:08]} 10. Nf3 {[%emt 0:00:05]} Bg7 {[%emt 0:00:21]} 11. Bg5 {[%emt 0:00:05]} f6 {[%emt 0:00:09]} 12. exf6 {[%emt 0:00:04]} Qxe2+ {[%emt 0:00:21]} 13. Bxe2 {[%emt 0:00:04]} Nxf6 {[%emt 0:00:54]} 14. O-O-O {[%emt 0:01:10]} O-O-O {[%emt 0:02:52]} 15. Nd2 {[%emt 0:00:36]} Rde8 {[%emt 0:04:34]} 16. Bf3 {[%emt 0:02:58]} h6 {[%emt 0:03:52]} 17. Be3 {[%emt 0:00:41]} g5 {[%emt 0:02:29]} 18. h3 {[%emt 0:01:42]} Kb8 {[%emt 0:09:27]} 19. Rhe1 {[%emt 0:06:31]} d5 {[%emt 0:07:34]} 20. Bd4 {[%emt 0:02:49]} Rxe1 {[%emt 0:09:11]} 21. Rxe1 {[%emt 0:00:56]} Re8 {[%emt 0:00:55]} 22. Rxe8+ {[%emt 0:00:57]} Nxe8 {[%emt 0:00:02]} 23. Bxg7 {[%emt 0:00:10]} Nxg7 {[%emt 0:00:05]} 24. cxd5 {[%emt 0:00:09]} cxd5 {[%emt 0:00:04]} 25. Bxd5 {[%emt 0:00:08]} Nh5 {[%emt 0:00:39]} 26. g3 {[%emt 0:03:53]} Bc8 {[%emt 0:07:38]} 27. Bg2 {[%emt 0:01:01]} Ng7 {[%emt 0:02:47]} 28. Nc4 {[%emt 0:01:26]} Nf5 {[%emt 0:04:08]} 29. Ne5 {[%emt 0:01:23]} Nd4 {[%emt 0:00:39]} 30. Kd2 {[%emt 0:00:34]} Be6 {[%emt 0:04:29]} 31. Kd3 {[%emt 0:01:15]} c5 {[%emt 0:01:58]} 32. b4 {[%emt 0:03:52]} Bxa2 {[%emt 0:04:57]} 33. bxc5 {[%emt 0:00:04]} Ne6 {[%emt 0:03:21]} 34. c6 {[%emt 0:03:40]} Kc7 {[%emt 0:01:20]} 35. Nc4 {[%emt 0:02:39]} Bxc4+ {[%emt 0:01:52]} 36. Kxc4 {[%emt 0:00:05]} Nd8 {[%emt 0:00:18]} 37. Kc5 {[%emt 0:01:59]} a5 {[%emt 0:01:18]} 38. Bd5 {[%emt 0:02:13]} a4 {[%emt 0:00:36]} 39. f4 {[%emt 0:00:39]} gxf4 {[%emt 0:03:14]} 40. gxf4 {[%emt 0:01:32]} a3 {[%emt 0:00:09]} 41. f5 {[%emt 0:31:29]} Nxc6 {[%emt 0:30:08]} 42. f6 {[%emt 0:00:22]} Nd8 {[%emt 0:01:06]} 43. Kd4 {[%emt 0:01:43]} Kd6 {[%emt 0:01:18]} 44. Ke4 {[%emt 0:01:52]} Ne6 {[%emt 0:01:48]} 45. f7 {[%emt 0:00:58]} Ng5+ {[%emt 0:01:32]} 46. Kf5 {[%emt 0:00:21]} Ke7 {[%emt 0:01:32]} 47. Kg6 {[%emt 0:00:17]} Kf8 {[%emt 0:03:29]} 48. h4 {[%emt 0:00:15]} Nf3 {[%emt 0:00:36]} 49. h5 {[%emt 0:00:54]} Ne5+ {[%emt 0:02:03]} 50. Kf6 {[%emt 0:00:56]} a2 {[%emt 0:00:19]} 51. Bxa2 {[%emt 0:00:17]} Nxf7 {[%emt 0:00:11]} 52. Kg6 {[%emt 0:01:29]} Kg8 {[%emt 0:00:08]} 53. Bxf7+ {[%emt 0:00:36]} Kh8 {[%emt 0:00:07]} 54. Kxh6 {[%emt 0:00:14]} 1/2-1/2

[Event "9th Amsterdam Science Park B 2019"]
[Site "Amsterdam"]
[Date "2019.07.07"]
[Round "2.6"]
[White "Bollaart, Jeroen"]
[Black "De Winter, Arthur"]
[Result "1/2-1/2"]
[ECO "B22"]
[WhiteElo "1950"]
[BlackElo "1859"]
[Annotator "NA"]
[PlyCount "84"]
[EventDate "2019.07.06"]
[EventType "swiss"]
[EventCountry "NED"]
[SourceTitle "playchess.com"]
[Source "ChessBase"]
[SourceQuality "1"]
[TimeControl "40/5400+30:1800+30"]

1. e4 {[%emt 0:00:00]} c5 {[%emt 0:00:00]} 2. c3 {[%emt 0:00:06]} Nf6 {[%emt 0:00:00]} 3. e5 {[%emt 0:00:08]} Nd5 {[%emt 0:00:00]} 4. Nf3 {[%emt 0:00:06]} Nc6 {[%emt 0:00:17]} 5. Bc4 {[%emt 0:00:38]} Nb6 {[%emt 0:00:37]} 6. Bb3 {[%emt 0:00:19]} d6 {[%emt 0:02:23]} 7. exd6 {[%emt 0:01:32]} exd6 {[%emt 0:01:37]} 8. O-O {[%emt 0:06:13]} Be7 {[%emt 0:00:21]} 9. d4 {[%emt 0:03:26]} cxd4 {[%emt 0:02:20]} 10. cxd4 {[%emt 0:04:25]} O-O {[%emt 0:00:22]} 11. h3 {[%emt 0:04:27]} Bf5 {[%emt 0:06:24]} 12. Nc3 {[%emt 0:06:04]} Bf6 {[%emt 0:12:45]} 13. Re1 {[%emt 0:12:05]} Qd7 {[%emt 0:16:00]} 14. Ne4 {[%emt 0:07:57]} Bxe4 {[%emt 0:10:43]} 15. Rxe4 {[%emt 0:00:12]} Rfe8 {[%emt 0:00:07]} 16. Rxe8+ {[%emt 0:02:48]} Rxe8 {[%emt 0:00:13]} 17. Ng5 {[%emt 0:24:09]} d5 {[%emt 0:07:31]} 18. Nf3 {[%emt 0:12:00]} Nc4 {[%emt 0:12:20]} 19. a3 {[%emt 0:01:02]} Re4 {[%emt 0:07:06]} 20. Bc2 {[%emt 0:00:54]} Re8 {[%emt 0:00:36]} 21. b3 {[%emt 0:02:18]} Nd6 {[%emt 0:00:19]} 22. Qd3 {[%emt 0:03:06]} Ne4 {[%emt 0:00:59]} 23. Be3 {[%emt 0:00:42]} g6 {[%emt 0:01:05]} 24. Rd1 {[%emt 0:00:35]} Rc8 {[%emt 0:05:21]} 25. Bh6 {[%emt 0:02:06]} Qd6 {[%emt 0:01:49]} 26. b4 {[%emt 0:00:45]} Ne7 {[%emt 0:00:31]} 27. Bd2 {[%emt 0:01:13]} Nf5 {[%emt 0:00:56]} 28. Be1 {[%emt 0:00:21]} a6 {[%emt 0:02:28]} 29. Bb1 {[%emt 0:00:40]} Kg7 {[%emt 0:02:13]} 30. Ba2 {[%emt 0:00:54]} h5 {[%emt 0:03:13]} 31. Kf1 {[%emt 0:00:27]} Nh4 {[%emt 0:00:58]} 32. Nxh4 {[%emt 0:01:05]} Bxh4 {[%emt 0:00:08]} 33. g3 {[%emt 0:00:34]} Bf6 {[%emt 0:00:13]} 34. Kg2 {[%emt 0:00:34]} h4 {[%emt 0:00:55]} 35. g4 {[%emt 0:00:40]} Rc7 {[%emt 0:01:23]} 36. Bd2 {[%emt 0:00:30]} Nxf2 {[%emt 0:01:36]} 37. Kxf2 {[%emt 0:00:12]} Qh2+ {[%emt 0:00:05]} 38. Kf1 {[%emt 0:00:26]} Qh1+ {[%emt 0:00:22]} 39. Kf2 {[%emt 0:00:17]} Qh2+ {[%emt 0:00:28]} 40. Kf1 {[%emt 0:00:18]} Qh1+ {[%emt 0:01:41]} 41. Kf2 {[%emt 0:31:17]} Qh2+ {[%emt 0:30:27]} 42. Kf1 {[%emt 0:00:15]} Qh1+ 1/2-1/2

[Event "9th Amsterdam Science Park B 2019"]
[Site "Amsterdam"]
[Date "2019.07.07"]
[Round "2.7"]
[White "Zegstroo, Martin"]
[Black "Knol, Daniel"]
[Result "1/2-1/2"]
[ECO "B21"]
[WhiteElo "1798"]
[BlackElo "1622"]
[Annotator "NA"]
[PlyCount "50"]
[EventDate "2019.07.06"]
[EventType "swiss"]
[EventCountry "NED"]
[SourceTitle "playchess.com"]
[Source "ChessBase"]
[SourceQuality "1"]
[TimeControl "40/5400+30:1800+30"]

1. e4 {[%emt 0:00:00]} c5 {[%emt 0:00:00]} 2. d4 {[%emt 0:00:00]} cxd4 {[%emt 0:00:00]} 3. c3 {[%emt 0:00:00]} Nf6 {[%emt 0:00:00]} 4. e5 {[%emt 0:00:00]} Nd5 {[%emt 0:00:00]} 5. cxd4 {[%emt 0:00:08]} Nc6 {[%emt 0:00:00]} 6. Nf3 {[%emt 0:00:48]} d6 {[%emt 0:00:04]} 7. Be2 {[%emt 0:00:31]} Bg4 {[%emt 0:00:18]} 8. O-O {[%emt 0:04:41]} e6 {[%emt 0:01:24]} 9. exd6 {[%emt 0:00:31]} Bxd6 {[%emt 0:00:08]} 10. h3 {[%emt 0:00:22]} Bh5 {[%emt 0:00:05]} 11. Nc3 {[%emt 0:02:54]} Nf6 {[%emt 0:03:03]} 12. Be3 {[%emt 0:00:44]} O-O {[%emt 0:00:32]} 13. Nd2 {[%emt 0:07:02]} Bxe2 {[%emt 0:01:04]} 14. Qxe2 {[%emt 0:00:09]} Qb6 {[%emt 0:00:28]} 15. Nc4 {[%emt 0:00:35]} Qd8 {[%emt 0:00:48]} 16. Nxd6 {[%emt 0:00:40]} Qxd6 {[%emt 0:00:05]} 17. Rfd1 {[%emt 0:02:03]} a6 {[%emt 0:00:42]} 18. Rac1 {[%emt 0:01:05]} Nb4 {[%emt 0:00:43]} 19. Qf3 {[%emt 0:04:20]} Nbd5 {[%emt 0:01:14]} 20. Ne4 {[%emt 0:01:58]} Nxe4 {[%emt 0:00:24]} 21. Qxe4 {[%emt 0:00:10]} Rac8 {[%emt 0:00:56]} 22. a3 {[%emt 0:01:24]} Qb6 {[%emt 0:00:58]} 23. Qb1 {[%emt 0:08:18]} Rfe8 {[%emt 0:06:22]} 24. Rxc8 {[%emt 0:00:19]} Rxc8 {[%emt 0:00:05]} 25. Rc1 {[%emt 0:00:10]} Rc6 {[%emt 0:00:43]} 1/2-1/2